[Event "Snabb-SM för veteraner, 50+ 2019"]
[Site "Schackcentrum, Vegagatan 20, Gothenburg, Sweden"]
[Date "2019.10.05"]
[Round "5.5"]
[White "Gamback, Bjorn"]
[Black "Svensson, Sven"]
[Result "0-1"]
[TimeControl "15 minutes + 10 seconds per move from move one"]
[WhiteTitle "CM"]
[WhiteFideId "1703161"]
[BlackFideId "1709240"]
[WhiteElo "2120"]
[BlackElo "2158"]

1. Nf3 {[%clk 00:15:19]} Nf6 {[%clk 00:15:18]} {[%emt 00:00:02]} 2. c4 {[%clk
00:15:27]} {[%emt 00:00:02]} e6 {[%clk 00:15:18]} {[%emt 00:00:10]} 3. b3
{[%clk 00:15:34]} {[%emt 00:00:03]} d5 {[%clk 00:15:25]} {[%emt 00:00:03]} 4.
cxd5 {[%clk 00:15:43]} {[%emt 00:00:02]} exd5 {[%clk 00:15:33]} {[%emt
00:00:02]} 5. Bb2 {[%clk 00:15:51]} {[%emt 00:00:02]} Be7 {[%clk 00:15:37]}
{[%emt 00:00:05]} 6. e3 {[%clk 00:15:59]} {[%emt 00:00:03]} O-O {[%clk
00:15:45]} {[%emt 00:00:02]} 7. Be2 {[%clk 00:16:07]} {[%emt 00:00:02]} c6
{[%clk 00:15:41]} {[%emt 00:00:15]} 8. O-O {[%clk 00:16:12]} {[%emt 00:00:04]}
Bg4 {[%clk 00:15:41]} {[%emt 00:00:09]} 9. Nd4 {[%clk 00:15:53]} {[%emt
00:00:29]} Bxe2 {[%clk 00:15:45]} {[%emt 00:00:06]} 10. Qxe2 {[%clk 00:16:02]}
{[%emt 00:00:02]} Re8 {[%clk 00:15:44]} {[%emt 00:00:11]} 11. Nf5 {[%clk
00:15:32]} {[%emt 00:00:40]} Bf8 {[%clk 00:15:27]} {[%emt 00:00:27]} 12. Qf3
{[%clk 00:15:34]} {[%emt 00:00:07]} Nbd7 {[%clk 00:13:00]} {[%emt 00:02:38]} 13.
Qg3 {[%clk 00:15:32]} {[%emt 00:00:12]} g6 {[%clk 00:12:00]} {[%emt 00:01:10]}
14. Nd4 {[%clk 00:14:23]} {[%emt 00:01:19]} Bg7 {[%clk 00:11:54]} {[%emt
00:00:16]} 15. Nc3 {[%clk 00:12:49]} {[%emt 00:01:44]} Ne5 {[%clk 00:10:46]}
{[%emt 00:01:19]} 16. Rad1 {[%clk 00:12:07]} {[%emt 00:00:52]} Qd7 {[%clk
00:07:59]} {[%emt 00:02:57]} 17. d3 {[%clk 00:11:16]} {[%emt 00:01:01]} Nh5
{[%clk 00:07:58]} {[%emt 00:00:11]} 18. Qh3 {[%clk 00:11:26]} Qxh3 19. gxh3
{[%clk 00:11:34]} c5 {[%clk 00:05:09]} {[%emt 00:03:06]} 20. Ndb5 {[%clk
00:11:39]} {[%emt 00:00:05]} Nf3+ {[%clk 00:05:18]} 21. Kg2 {[%clk 00:11:47]}
{[%emt 00:00:02]} Nh4+ {[%clk 00:05:27]} {[%emt 00:00:02]} 22. Kh1 {[%clk
00:11:49]} {[%emt 00:00:07]} Rad8 {[%clk 00:04:47]} {[%emt 00:00:50]} 23. Nc7
{[%clk 00:11:06]} {[%emt 00:00:53]} Rf8 {[%clk 00:04:16]} {[%emt 00:00:42]} 24.
Ba1 {[%clk 00:08:56]} {[%emt 00:02:19]} Nf6 {[%clk 00:03:37]} {[%emt 00:00:48]}
25. e4 {[%clk 00:08:10]} {[%emt 00:00:56]} dxe4 {[%clk 00:03:25]} {[%emt
00:00:23]} 26. dxe4 {[%clk 00:08:18]} {[%emt 00:00:02]} Nf3 {[%clk 00:03:34]}
{[%emt 00:00:01]} 27. N7d5 {[%clk 00:08:15]} {[%emt 00:00:13]} Rfe8 {[%clk
00:03:11]} {[%emt 00:00:33]} 28. Nxf6+ {[%clk 00:08:10]} {[%emt 00:00:14]} Bxf6
{[%clk 00:03:20]} {[%emt 00:00:02]} 29. Nd5 {[%clk 00:08:19]} {[%emt 00:00:01]}
Bxa1 {[%clk 00:03:14]} {[%emt 00:00:16]} 30. Rxa1 {[%clk 00:08:28]} Kg7 {[%clk
00:03:22]} {[%emt 00:00:01]} 31. Kg2 {[%clk 00:07:30]} {[%emt 00:01:09]} Nd2
{[%clk 00:03:28]} {[%emt 00:00:04]} 32. Rfd1 {[%clk 00:07:39]} Nxe4 {[%clk
00:03:32]} {[%emt 00:00:06]} 33. Rac1 {[%clk 00:07:28]} {[%emt 00:00:22]} b6
{[%clk 00:03:41]} {[%emt 00:00:02]} 34. Ne3 {[%clk 00:06:58]} {[%emt 00:00:39]}
h5 {[%clk 00:03:37]} {[%emt 00:00:14]} 35. h4 {[%clk 00:06:48]} {[%emt
00:00:20]} Nf6 {[%clk 00:02:56]} {[%emt 00:00:51]} 36. Kf3 {[%clk 00:06:38]}
{[%emt 00:00:19]} Nd7 {[%clk 00:02:55]} {[%emt 00:00:11]} 37. Nc4 {[%clk
00:06:37]} {[%emt 00:00:11]} Nb8 {[%clk 00:02:28]} {[%emt 00:00:38]} 38. Nd6
{[%clk 00:06:29]} {[%emt 00:00:18]} Rf8 {[%clk 00:02:17]} {[%emt 00:00:20]} 39.
Nb5 {[%clk 00:06:02]} {[%emt 00:00:38]} Nc6 {[%clk 00:02:24]} {[%emt 00:00:04]}
40. Kg3 {[%clk 00:05:19]} {[%emt 00:00:52]} a6 {[%clk 00:02:24]} {[%emt
00:00:10]} 41. Nc3 {[%clk 00:05:28]} Nd4 {[%clk 00:02:30]} {[%emt 00:00:04]} 42.
Kg2 {[%clk 00:05:25]} {[%emt 00:00:13]} Rfe8 {[%clk 00:02:33]} {[%emt
00:00:08]} 43. Rd2 {[%clk 00:05:11]} {[%emt 00:00:24]} Nf5 {[%clk 00:02:24]}
{[%emt 00:00:19]} 44. Rcd1 {[%clk 00:05:03]} {[%emt 00:00:18]} Rxd2 {[%clk
00:02:27]} {[%emt 00:00:07]} 45. Rxd2 {[%clk 00:05:13]} Nxh4+ {[%clk 00:02:36]}
{[%emt 00:00:01]} 46. Kg3 {[%clk 00:05:16]} {[%emt 00:00:07]} Nf5+ {[%clk
00:02:45]} 47. Kf4 {[%clk 00:05:25]} Nd4 {[%clk 00:02:35]} {[%emt 00:00:20]} 48.
Nd5 {[%clk 00:05:27]} {[%emt 00:00:09]} Re6 {[%clk 00:02:37]} {[%emt 00:00:07]}
49. Kg3 {[%clk 00:05:00]} {[%emt 00:00:36]} Rd6 {[%clk 00:02:38]} {[%emt
00:00:10]} 50. Ne3 {[%clk 00:04:54]} {[%emt 00:00:16]} Kf6 {[%clk 00:02:42]}
{[%emt 00:00:06]} 51. Nc4 {[%clk 00:04:16]} {[%emt 00:00:49]} Rd5 {[%clk
00:02:29]} {[%emt 00:00:23]} 52. Rb2 {[%clk 00:04:16]} {[%emt 00:00:09]} b5
{[%clk 00:02:29]} {[%emt 00:00:10]} 53. Nd2 {[%clk 00:04:16]} {[%emt 00:00:10]}
Rg5+ {[%clk 00:02:07]} {[%emt 00:00:32]} 54. Kf4 {[%clk 00:04:12]} {[%emt
00:00:11]} Rg4+ {[%clk 00:02:12]} {[%emt 00:00:07]} 55. Ke3 {[%clk 00:04:16]}
{[%emt 00:00:06]} Ke5 {[%clk 00:02:20]} {[%emt 00:00:02]} 56. f3 {[%clk
00:04:02]} {[%emt 00:00:25]} Rh4 {[%clk 00:02:19]} {[%emt 00:00:11]} 57. Nf1
{[%clk 00:03:57]} {[%emt 00:00:15]} f5 {[%clk 00:02:17]} {[%emt 00:00:12]} 58.
Kf2 {[%clk 00:03:53]} {[%emt 00:00:13]} Rf4 {[%clk 00:02:09]} {[%emt 00:00:18]}
59. Nd2 {[%clk 00:03:55]} {[%emt 00:00:09]} g5 {[%clk 00:02:18]} {[%emt
00:00:01]} 60. Ke3 {[%clk 00:03:46]} {[%emt 00:00:18]} Rh4 {[%clk 00:02:21]}
{[%emt 00:00:07]} 61. Nf1 {[%clk 00:03:33]} {[%emt 00:00:23]} Rh3 {[%clk
00:02:28]} {[%emt 00:00:03]} 62. Rf2 {[%clk 00:03:36]} {[%emt 00:00:07]} g4
{[%clk 00:02:36]} {[%emt 00:00:02]} 63. Kd2 {[%clk 00:03:11]} {[%emt 00:00:36]}
Rxf3 {[%clk 00:02:41]} {[%emt 00:00:04]} 64. Rxf3 {[%clk 00:03:10]} {[%emt
00:00:11]} Nxf3+ {[%clk 00:02:50]} {[%emt 00:00:01]} 65. Ke3 {[%clk 00:03:19]}
f4+ {[%clk 00:02:59]} 66. Kf2 {[%clk 00:03:28]} c4 {[%clk 00:03:06]} {[%emt
00:00:04]} 67. bxc4 {[%clk 00:03:10]} {[%emt 00:00:28]} bxc4 {[%clk 00:03:15]}
68. Ke2 {[%clk 00:03:19]} Kd4 {[%clk 00:03:20]} {[%emt 00:00:05]} 69. Kd1
{[%clk 00:03:25]} {[%emt 00:00:04]} Kd3 {[%clk 00:03:27]} {[%emt 00:00:02]} 70.
a3 {[%clk 00:03:26]} {[%emt 00:00:10]} c3 {[%clk 00:03:36]} {[%emt 00:00:01]}
71. a4 {[%clk 00:03:33]} {[%emt 00:00:03]} Nd2 {[%clk 00:03:44]} {[%emt
00:00:02]} 72. Nxd2 {[%clk 00:03:40]} {[%emt 00:00:03]} cxd2 {[%clk 00:03:53]}
{[%emt 00:00:01]} 73. a5 {[%clk 00:03:46]} {[%emt 00:00:04]} Ke3 {[%clk
00:04:01]} 74. h3 {[%clk 00:03:54]} {[%emt 00:00:03]} gxh3 {[%clk 00:04:10]}
{[%emt 00:00:02]} 75. Kc2 {[%clk 00:04:03]} Ke2 {[%clk 00:04:19]} 0-1

[Event "Snabb-SM för veteraner, 50+ 2019"]
[Site "Schackcentrum, Vegagatan 20, Gothenburg, Sweden"]
[Date "2019.10.05"]
[Round "5.6"]
[White "Hautajarvi, Jukka"]
[Black "Ansner, Bjorn"]
[Result "1/2-1/2"]
[TimeControl "15 minutes + 10 seconds per move from move one"]
[WhiteFideId "1716190"]
[BlackFideId "1702769"]
[WhiteElo "2145"]
[BlackElo "1934"]

1. d4 {[%clk 00:15:17]} {[%emt 00:00:02]} d5 {[%clk 00:15:13]} {[%emt
00:00:08]} 2. Nf3 {[%clk 00:15:25]} {[%emt 00:00:02]} e6 {[%clk 00:15:15]}
{[%emt 00:00:08]} 3. e3 {[%clk 00:15:32]} {[%emt 00:00:04]} f5 {[%clk
00:15:20]} {[%emt 00:00:04]} 4. c4 {[%clk 00:15:40]} {[%emt 00:00:02]} c6
{[%clk 00:15:28]} {[%emt 00:00:02]} 5. Be2 {[%clk 00:15:27]} {[%emt 00:00:23]}
Nf6 {[%clk 00:15:35]} {[%emt 00:00:03]} 6. Nc3 {[%clk 00:15:33]} {[%emt
00:00:05]} Bd6 {[%clk 00:15:35]} {[%emt 00:00:09]} 7. Ne5 {[%clk 00:15:12]}
{[%emt 00:00:31]} O-O {[%clk 00:15:09]} {[%emt 00:00:36]} 8. f4 {[%clk
00:15:20]} {[%emt 00:00:01]} Nbd7 {[%clk 00:14:53]} {[%emt 00:00:26]} 9. O-O
{[%clk 00:15:20]} {[%emt 00:00:10]} Ne4 {[%clk 00:14:49]} {[%emt 00:00:13]} 10.
Nxe4 {[%clk 00:15:19]} {[%emt 00:00:12]} dxe4 {[%clk 00:13:09]} {[%emt
00:01:50]} 11. Nxd7 {[%clk 00:14:50]} {[%emt 00:00:40]} Bxd7 {[%clk 00:12:59]}
{[%emt 00:00:20]} 12. c5 {[%clk 00:14:45]} {[%emt 00:00:15]} Be7 {[%clk
00:11:59]} {[%emt 00:01:08]} 13. Bd2 {[%clk 00:14:53]} {[%emt 00:00:03]} b6
{[%clk 00:12:01]} {[%emt 00:00:08]} 14. b4 {[%clk 00:14:59]} {[%emt 00:00:04]}
a5 {[%clk 00:12:09]} {[%emt 00:00:02]} 15. a3 {[%clk 00:15:07]} {[%emt
00:00:02]} axb4 {[%clk 00:11:19]} {[%emt 00:01:00]} 16. axb4 {[%clk 00:15:16]}
{[%emt 00:00:02]} Qc7 {[%clk 00:11:05]} {[%emt 00:00:23]} 17. Bc4 {[%clk
00:15:13]} {[%emt 00:00:12]} b5 {[%clk 00:10:12]} {[%emt 00:01:03]} 18. Bb3
{[%clk 00:15:16]} {[%emt 00:00:08]} Qb7 {[%clk 00:10:09]} {[%emt 00:00:13]} 19.
Qc2 {[%clk 00:14:22]} {[%emt 00:01:04]} Rxa1 {[%clk 00:09:55]} {[%emt
00:00:24]} 20. Rxa1 {[%clk 00:14:31]} {[%emt 00:00:02]} Ra8 {[%clk 00:10:03]}
{[%emt 00:00:02]} 21. Bc3 {[%clk 00:14:36]} {[%emt 00:00:05]} Rxa1+ {[%clk
00:09:49]} {[%emt 00:00:24]} 22. Bxa1 {[%clk 00:14:45]} Bf6 {[%clk 00:09:45]}
{[%emt 00:00:14]} 23. Qa2 {[%clk 00:13:41]} {[%emt 00:01:14]} Kf7 {[%clk
00:09:26]} {[%emt 00:00:28]} 24. g4 {[%clk 00:13:42]} {[%emt 00:00:09]} g6
{[%clk 00:08:42]} {[%emt 00:00:54]} 25. g5 {[%clk 00:13:47]} {[%emt 00:00:05]}
Bg7 {[%clk 00:08:37]} {[%emt 00:00:15]} 26. d5 {[%clk 00:13:22]} {[%emt
00:00:35]} exd5 {[%clk 00:07:11]} {[%emt 00:01:36]} 27. Bxg7 {[%clk 00:13:30]}
{[%emt 00:00:02]} Kxg7 {[%clk 00:07:13]} {[%emt 00:00:07]} 28. Qb2+ {[%clk
00:13:38]} {[%emt 00:00:03]} Kg8 {[%clk 00:07:05]} {[%emt 00:00:17]} 29. Qf6
{[%clk 00:12:39]} {[%emt 00:01:09]} Be8 {[%clk 00:05:16]} {[%emt 00:02:00]} 30.
Kf2 {[%clk 00:11:47]} {[%emt 00:01:02]} Qg7 {[%clk 00:04:46]} {[%emt 00:00:39]}
31. Qd4 {[%clk 00:10:09]} {[%emt 00:01:49]} Qxd4 {[%clk 00:04:27]} {[%emt
00:00:29]} 32. exd4 {[%clk 00:10:17]} {[%emt 00:00:02]} 1/2-1/2

[Event "Snabb-SM för veteraner, 50+ 2019"]
[Site "Schackcentrum, Vegagatan 20, Gothenburg, Sweden"]
[Date "2019.10.05"]
[Round "5.7"]
[White "Madebrink, Lars"]
[Black "Bergre, Joachim"]
[Result "0-1"]
[TimeControl "15 minutes + 10 seconds per move from move one"]
[WhiteFideId "1701347"]
[BlackFideId "1704893"]
[WhiteElo "2179"]
[BlackElo "2035"]

1. d4 {[%clk 00:15:19]} Nf6 {[%clk 00:15:17]} {[%emt 00:00:04]} 2. c4 {[%clk
00:15:28]} c5 {[%clk 00:15:25]} {[%emt 00:00:02]} 3. Nf3 {[%clk 00:15:23]}
{[%emt 00:00:15]} g6 {[%clk 00:15:31]} {[%emt 00:00:04]} 4. g3 {[%clk
00:15:28]} {[%emt 00:00:06]} Bg7 {[%clk 00:15:33]} {[%emt 00:00:07]} 5. Bg2
{[%clk 00:15:37]} O-O {[%clk 00:15:41]} {[%emt 00:00:04]} 6. O-O {[%clk
00:15:43]} {[%emt 00:00:03]} d6 {[%clk 00:15:48]} {[%emt 00:00:03]} 7. Nc3
{[%clk 00:15:39]} {[%emt 00:00:15]} Nc6 {[%clk 00:15:52]} {[%emt 00:00:06]} 8.
dxc5 {[%clk 00:15:42]} {[%emt 00:00:07]} dxc5 {[%clk 00:16:00]} {[%emt
00:00:02]} 9. Bf4 {[%clk 00:15:51]} {[%emt 00:00:01]} Qa5 {[%clk 00:15:08]}
{[%emt 00:01:01]} 10. Ne5 {[%clk 00:15:43]} {[%emt 00:00:18]} Nd4 {[%clk
00:14:11]} {[%emt 00:01:07]} 11. Nd5 {[%clk 00:14:51]} {[%emt 00:01:02]} Nxd5
{[%clk 00:13:10]} {[%emt 00:01:11]} 12. cxd5 {[%clk 00:14:48]} {[%emt
00:00:13]} Qb5 {[%clk 00:12:00]} {[%emt 00:01:20]} 13. Nd3 {[%clk 00:11:07]}
{[%emt 00:03:51]} c4 {[%clk 00:11:24]} {[%emt 00:00:46]} 14. a4 {[%clk
00:11:16]} {[%emt 00:00:02]} Qb3 {[%clk 00:11:23]} {[%emt 00:00:10]} 15. Ne5
{[%clk 00:09:59]} {[%emt 00:01:27]} Qxd1 {[%clk 00:09:51]} {[%emt 00:01:42]} 16.
Rfxd1 {[%clk 00:09:59]} {[%emt 00:00:10]} Nxe2+ {[%clk 00:09:47]} {[%emt
00:00:14]} 17. Kf1 {[%clk 00:10:02]} {[%emt 00:00:07]} Nxf4 18. gxf4 {[%clk
00:10:11]} Bf5 {[%clk 00:09:28]} {[%emt 00:00:12]} 19. Nxc4 {[%clk 00:09:54]}
{[%emt 00:00:28]} Bc2 {[%clk 00:07:02]} {[%emt 00:02:35]} 20. Rd2 {[%clk
00:08:07]} {[%emt 00:01:56]} Bf5 {[%clk 00:07:04]} {[%emt 00:00:08]} 21. d6
{[%clk 00:08:04]} {[%emt 00:00:13]} exd6 {[%clk 00:07:06]} {[%emt 00:00:10]} 22.
Nxd6 {[%clk 00:07:34]} {[%emt 00:00:39]} Be6 {[%clk 00:05:51]} {[%emt
00:01:25]} 23. Nxb7 {[%clk 00:06:42]} {[%emt 00:01:02]} Rab8 {[%clk 00:05:47]}
{[%emt 00:00:14]} 24. Rad1 {[%clk 00:06:27]} {[%emt 00:00:24]} Bh6 {[%clk
00:05:26]} {[%emt 00:00:32]} 25. Nc5 {[%clk 00:05:58]} {[%emt 00:00:38]} Bxf4
{[%clk 00:05:20]} {[%emt 00:00:17]} 26. Nxe6 {[%clk 00:05:53]} {[%emt
00:00:15]} fxe6 {[%clk 00:05:28]} {[%emt 00:00:03]} 27. Rd7 {[%clk 00:05:46]}
{[%emt 00:00:16]} Rxb2 {[%clk 00:05:03]} {[%emt 00:00:35]} 28. Rxa7 {[%clk
00:05:07]} {[%emt 00:00:49]} Be3 {[%clk 00:05:02]} {[%emt 00:00:11]} 29. Rdd7
{[%clk 00:04:29]} {[%emt 00:00:48]} Rfxf2+ {[%clk 00:04:55]} {[%emt 00:00:17]}
30. Ke1 {[%clk 00:04:38]} Rb1+ {[%clk 00:04:54]} {[%emt 00:00:11]} 0-1

[Event "Snabb-SM för veteraner, 50+ 2019"]
[Site "Schackcentrum, Vegagatan 20, Gothenburg, Sweden"]
[Date "2019.10.05"]
[Round "5.9"]
[White "Naslund, Mikael"]
[Black "Jacobsson, Lennart"]
[Result "1-0"]
[TimeControl "15 minutes + 10 seconds per move from move one"]
[WhiteTitle "FM"]
[WhiteFideId "1708260"]
[BlackFideId "1753320"]
[WhiteElo "2076"]
[BlackElo "1833"]

1. d4 {[%clk 00:15:17]} {[%emt 00:00:03]} d5 {[%clk 00:15:16]} {[%emt
00:00:05]} 2. c4 {[%clk 00:15:23]} {[%emt 00:00:04]} Bf5 {[%clk 00:15:23]}
{[%emt 00:00:02]} 3. Nc3 {[%emt 00:00:37]} e6 {[%clk 00:15:30]} {[%emt
00:00:04]} 4. Nf3 {[%clk 00:14:26]} {[%emt 00:00:40]} c6 {[%clk 00:15:15]}
{[%emt 00:00:24]} 5. Qb3 {[%clk 00:13:38]} {[%emt 00:00:58]} Qc8 {[%clk
00:13:45]} {[%emt 00:01:40]} 6. Bf4 {[%clk 00:13:33]} {[%emt 00:00:15]} Nd7
{[%clk 00:13:27]} {[%emt 00:00:28]} 7. cxd5 {[%clk 00:12:55]} {[%emt 00:00:48]}
exd5 {[%clk 00:13:19]} {[%emt 00:00:18]} 8. Rc1 {[%clk 00:12:50]} {[%emt
00:00:15]} Ngf6 {[%clk 00:09:39]} {[%emt 00:03:50]} 9. Nb5 {[%clk 00:12:03]}
{[%emt 00:00:56]} Nh5 {[%clk 00:07:27]} {[%emt 00:02:22]} 10. Qe3+ {[%clk
00:10:20]} {[%emt 00:01:53]} Kd8 {[%clk 00:06:22]} {[%emt 00:01:15]} 11. Bc7+
{[%clk 00:09:45]} {[%emt 00:00:46]} 1-0

[Event "Snabb-SM för veteraner, 50+ 2019"]
[Site "Schackcentrum, Vegagatan 20, Gothenburg, Sweden"]
[Date "2019.10.05"]
[Round "5.10"]
[White "Karlsson, Ulf"]
[Black "Wesslen, Ulf"]
[Result "0-1"]
[TimeControl "15 minutes + 10 seconds per move from move one"]
[WhiteFideId "1721674"]
[BlackFideId "1705199"]
[WhiteElo "2035"]
[BlackElo "1971"]

1. e4 {[%clk 00:15:18]} {[%emt 00:00:01]} c5 {[%clk 00:15:17]} {[%emt
00:00:03]} 2. Nc3 {[%clk 00:15:26]} {[%emt 00:00:03]} e6 {[%clk 00:15:18]}
{[%emt 00:00:08]} 3. g3 {[%clk 00:15:33]} {[%emt 00:00:03]} Nc6 {[%clk
00:15:21]} {[%emt 00:00:07]} 4. Bg2 {[%clk 00:15:41]} {[%emt 00:00:02]} a6
{[%clk 00:15:13]} {[%emt 00:00:18]} 5. d3 {[%clk 00:15:48]} {[%emt 00:00:04]}
d6 {[%clk 00:15:06]} {[%emt 00:00:18]} 6. f4 {[%clk 00:15:55]} {[%emt
00:00:02]} Nf6 {[%clk 00:13:49]} {[%emt 00:01:28]} 7. Nf3 {[%clk 00:15:58]}
{[%emt 00:00:06]} d5 {[%clk 00:12:24]} {[%emt 00:01:35]} 8. e5 {[%clk
00:14:58]} {[%emt 00:01:10]} Nd7 {[%clk 00:12:06]} {[%emt 00:00:28]} 9. O-O
{[%clk 00:15:05]} {[%emt 00:00:03]} Be7 {[%clk 00:11:59]} {[%emt 00:00:17]} 10.
Ne2 {[%clk 00:14:31]} {[%emt 00:00:44]} O-O {[%clk 00:10:50]} {[%emt 00:01:19]}
11. c3 {[%clk 00:14:40]} {[%emt 00:00:01]} f6 {[%clk 00:09:59]} {[%emt
00:01:02]} 12. d4 {[%clk 00:14:39]} {[%emt 00:00:10]} Qe8 {[%clk 00:08:34]}
{[%emt 00:01:34]} 13. g4 {[%clk 00:14:01]} {[%emt 00:00:49]} fxe5 {[%clk
00:08:01]} {[%emt 00:00:44]} 14. fxe5 {[%clk 00:14:04]} {[%emt 00:00:06]} cxd4
{[%clk 00:07:26]} {[%emt 00:00:45]} 15. cxd4 {[%clk 00:14:10]} {[%emt
00:00:04]} Nb6 {[%clk 00:05:50]} {[%emt 00:01:46]} 16. b3 {[%clk 00:14:14]}
{[%emt 00:00:06]} Bd7 {[%clk 00:05:38]} {[%emt 00:00:22]} 17. Be3 {[%clk
00:12:47]} {[%emt 00:01:36]} Rc8 {[%clk 00:04:54]} {[%emt 00:00:55]} 18. Qe1
{[%clk 00:11:43]} {[%emt 00:01:14]} Nb4 {[%clk 00:03:46]} {[%emt 00:01:18]} 19.
Rc1 {[%clk 00:08:20]} {[%emt 00:03:33]} Qg6 {[%clk 00:03:00]} {[%emt 00:00:56]}
20. Rxc8 {[%clk 00:08:16]} {[%emt 00:00:15]} Rxc8 {[%clk 00:03:08]} 21. h3
{[%clk 00:08:14]} {[%emt 00:00:11]} Nxa2 {[%clk 00:02:45]} {[%emt 00:00:34]} 22.
Qa5 {[%clk 00:08:04]} {[%emt 00:00:20]} Qc2 {[%clk 00:02:00]} {[%emt 00:00:55]}
23. Rf2 {[%clk 00:07:28]} {[%emt 00:00:47]} Rc6 {[%clk 00:01:51]} {[%emt
00:00:19]} 24. Bd2 {[%clk 00:04:11]} {[%emt 00:03:27]} Qxb3 {[%clk 00:01:44]}
{[%emt 00:00:16]} 25. Bg5 {[%clk 00:03:30]} {[%emt 00:00:51]} Bb4 {[%clk
00:01:48]} {[%emt 00:00:06]} 26. Nd2 {[%clk 00:03:05]} {[%emt 00:00:35]} Qd1+
{[%clk 00:01:56]} {[%emt 00:00:01]} 27. Rf1 {[%clk 00:03:07]} {[%emt 00:00:10]}
Qxf1+ {[%clk 00:02:01]} {[%emt 00:00:04]} 28. Kxf1 {[%clk 00:02:40]} {[%emt
00:00:37]} Bxa5 {[%clk 00:02:10]} {[%emt 00:00:01]} 29. Nb3 {[%clk 00:02:49]}
{[%emt 00:00:01]} Bb4 {[%clk 00:02:11]} {[%emt 00:00:09]} 30. Nf4 {[%clk
00:02:14]} {[%emt 00:00:45]} a5 {[%clk 00:02:14]} {[%emt 00:00:08]} 31. Nd3
{[%clk 00:02:15]} {[%emt 00:00:08]} Bc3 {[%clk 00:02:18]} {[%emt 00:00:06]} 32.
Nbc5 {[%clk 00:02:16]} {[%emt 00:00:09]} Bxd4 {[%clk 00:02:21]} {[%emt
00:00:07]} 33. Nxb7 {[%clk 00:02:10]} {[%emt 00:00:16]} a4 {[%clk 00:02:13]}
{[%emt 00:00:18]} 34. Nf4 {[%clk 00:01:21]} {[%emt 00:01:00]} Nb4 {[%clk
00:01:44]} {[%emt 00:00:38]} 35. Be7 {[%clk 00:00:55]} {[%emt 00:00:37]} Rc1+
{[%clk 00:01:43]} {[%emt 00:00:11]} 36. Ke2 {[%clk 00:01:03]} {[%emt 00:00:02]}
Rc2+ {[%clk 00:01:50]} {[%emt 00:00:02]} 37. Kf3 {[%clk 00:01:12]} Na2 {[%clk
00:01:32]} {[%emt 00:00:28]} 38. g5 {[%clk 00:01:07]} {[%emt 00:00:15]} Bxe5
{[%clk 00:01:37]} {[%emt 00:00:06]} 39. g6 {[%clk 00:00:48]} {[%emt 00:00:29]}
Bxf4 {[%clk 00:01:41]} {[%emt 00:00:05]} 40. gxh7+ {[%clk 00:00:50]} {[%emt
00:00:08]} Kxh7 {[%clk 00:01:49]} {[%emt 00:00:01]} 41. Bf1 {[%clk 00:00:57]}
{[%emt 00:00:03]} Rc3+ {[%clk 00:01:43]} {[%emt 00:00:16]} 42. Kxf4 {[%clk
00:01:03]} {[%emt 00:00:04]} Nc4 {[%clk 00:01:39]} {[%emt 00:00:14]} 43. Be2
{[%clk 00:01:01]} {[%emt 00:00:12]} e5+ {[%clk 00:01:27]} {[%emt 00:00:22]} 44.
Kg5 {[%clk 00:00:52]} {[%emt 00:00:19]} Rg3+ {[%clk 00:01:33]} {[%emt
00:00:04]} 45. Kh4 {[%clk 00:00:53]} {[%emt 00:00:08]} Rxh3+ {[%clk 00:01:41]}
{[%emt 00:00:01]} 46. Kg5 {[%clk 00:01:02]} {[%emt 00:00:02]} Ne3 {[%clk
00:01:23]} {[%emt 00:00:28]} 47. Bh5 {[%clk 00:00:46]} {[%emt 00:00:26]} Rxh5+
{[%clk 00:01:10]} {[%emt 00:00:23]} 48. Kxh5 {[%clk 00:00:55]} Nc4 {[%clk
00:01:06]} {[%emt 00:00:14]} 49. Nc5 {[%clk 00:00:56]} {[%emt 00:00:08]} Be8+
{[%clk 00:01:10]} {[%emt 00:00:07]} 50. Kg4 {[%clk 00:01:04]} {[%emt 00:00:02]}
a3 {[%clk 00:01:17]} {[%emt 00:00:04]} 51. Nd3 {[%clk 00:01:07]} {[%emt
00:00:06]} Kg6 {[%clk 00:01:21]} {[%emt 00:00:06]} 52. Bc5 {[%clk 00:00:49]}
{[%emt 00:00:29]} Nc3 {[%clk 00:01:28]} {[%emt 00:00:03]} 53. Bb4 {[%clk
00:00:46]} {[%emt 00:00:12]} Ne4 {[%clk 00:01:32]} {[%emt 00:00:06]} 54. Nxe5+
{[%clk 00:00:49]} {[%emt 00:00:08]} Nxe5+ {[%emt 00:00:01]} 55. Bxa3 Bd7+
{[%clk 00:01:48]} {[%emt 00:00:02]} 56. Kf4 {[%clk 00:01:07]} {[%emt 00:00:02]}
Nc4 {[%clk 00:01:53]} {[%emt 00:00:04]} 57. Be7 {[%clk 00:01:01]} {[%emt
00:00:16]} Kf7 {[%clk 00:02:00]} {[%emt 00:00:03]} 58. Bd8 {[%clk 00:01:10]}
{[%emt 00:00:02]} Kg6 {[%clk 00:01:55]} {[%emt 00:00:15]} 59. Bc7 {[%clk
00:01:14]} {[%emt 00:00:06]} Kh5 {[%clk 00:02:04]} {[%emt 00:00:01]} 60. Bd8
{[%clk 00:01:18]} {[%emt 00:00:06]} g5+ {[%clk 00:02:11]} {[%emt 00:00:03]} 61.
Kf3 {[%clk 00:01:26]} {[%emt 00:00:02]} Kg6 {[%clk 00:02:19]} {[%emt 00:00:02]}
62. Bc7 {[%clk 00:01:17]} {[%emt 00:00:19]} Kf5 {[%clk 00:02:28]} 63. Bb8
{[%clk 00:01:24]} {[%emt 00:00:03]} Ne5+ {[%clk 00:02:30]} {[%emt 00:00:08]} 64.
Kg2 {[%clk 00:01:29]} {[%emt 00:00:05]} Bc6 {[%clk 00:02:30]} {[%emt 00:00:10]}
65. Ba7 {[%clk 00:01:34]} {[%emt 00:00:06]} Kg4 {[%clk 00:02:28]} {[%emt
00:00:11]} 66. Bd4 {[%clk 00:01:25]} {[%emt 00:00:19]} Nd3 {[%clk 00:02:36]}
{[%emt 00:00:02]} 67. Kf1 {[%clk 00:01:24]} {[%emt 00:00:11]} Kf3 {[%clk
00:02:42]} {[%emt 00:00:04]} 68. Ba7 {[%clk 00:01:16]} {[%emt 00:00:19]} g4
{[%clk 00:02:38]} {[%emt 00:00:13]} 69. Kg1 {[%clk 00:01:13]} {[%emt 00:00:13]}
g3 {[%clk 00:02:44]} {[%emt 00:00:05]} 70. Bb6 {[%clk 00:01:08]} {[%emt
00:00:15]} Nf4 {[%clk 00:02:51]} {[%emt 00:00:02]} 71. Ba7 {[%clk 00:01:06]}
{[%emt 00:00:13]} Ne2+ {[%clk 00:02:59]} {[%emt 00:00:02]} 72. Kh1 {[%clk
00:01:11]} {[%emt 00:00:05]} d4 {[%clk 00:02:55]} {[%emt 00:00:14]} 73. Bxd4
{[%clk 00:01:03]} {[%emt 00:00:18]} Nxd4 {[%clk 00:02:59]} {[%emt 00:00:07]}
0-1